Cogmind - Beta 15 @@@ ROGUE MODE // 2025.05.12 @ 06:13:22 Player: Cereal Killer Result: Destroyed by G-50 Soldier with Heavy Laser Performance ------------- Evolutions (5) 2500 Regions Visited (13) 2600 Robots Destroyed (261) 1305 Value Destroyed (12567) 12567 Prototype IDs (41) 820 Alien Tech Used (0) 0 Bonus (5799) 5799 TOTAL SCORE: 25591 Bonus ------- High Alert Combat Kills 4414 Follower Combat Kills 685 Entered Garrisons 400 Aligned with FarCom 300 Cogmind --------- Core Integrity 0/1000 Matter 300/300 Energy 4/100 System Corruption 29% Temperature Critical (1194) Movement Core (50) Location -5/Factory Parts ------- > --- POWER (2) -------- (None) > --- PROPULSION (2) --- (None) > --- UTILITY (9) ------ Improved Signal Interpreter Improved Signal Interpreter > --- WEAPON (4) ------- (None) > --- INVENTORY (5) ---- Advanced Terrain Scan Processor Improved System Shield Heavy Mace Peak State ------------ > --- POWER ------------ Reinforced Fission Core Reinforced Fission Core > --- PROPULSION ------- Improved Treads Armored Medium Treads > --- UTILITY ---------- Power Amplifier High-capacity Storage Unit Improved Signal Interpreter Advanced Targeting Computer Improved Melee Analysis Suite Microactuators Improved Medium Armor Plating Layered Heavy Armor Plating > --- WEAPON ----------- XL Autogun Array > --- INVENTORY -------- Fission Core Micro Fission Core Micro Fission Core Particle Reactor Micro Antimatter Reactor Wheel Medium Matter Pod Matter Compressor Improved Signal Interpreter Advanced Terrain Scan Processor Point Defense System Improved System Shield Long-range Proton Cannon Heavy Assault Rifle Long-range Missile Launcher Heavy Mace [Rating: 99] Favorites ----------- Power Ion Engine Engine Ion Engine Power Core Reinforced Fission Core Reactor Particle Reactor Propulsion Wheel Treads Light Treads Wheel Wheel Utility High-capacity Storage Unit Device Improved Heat Sink Storage High-capacity Storage Unit Processor Advanced Targeting Computer Protection Hardened Medium Armor Plating Weapon Autogun Energy Gun Quantum Rifle Energy Cannon Heavy Plasma Cannon Ballistic Gun Autogun Ballistic Cannon Heavy Mass Driver Launcher Long-range Missile Launcher Impact Weapon Heavy Hammer Slashing Weapon Axe Build | -11 -10 -10 -10 -9 -8 -8 -8 -8 -8 -6 -6 -6 -5 ------- Run | Yrd Mat Min Exi Min Mat Gar Sto Rec Scr Fac Gar Fac Fac Slots Evolved 10 | . . . . . 4 . . . . 4 . . 2 Power 1 | . . . . . . . . . . . . . 1 Propulsion . | . . . . . . . . . . . . . . Utility 7 | . . . . . 3 . . . . 3 . . 1 Weapon 2 | . . . . . 1 . . . . 1 . . . Parts Attached 145 | 6 3 . 1 . 10 12 28 2 . 14 12 11 46 Power 12 | 1 . . . . . . 4 . . 1 2 . 4 Engine 5 | 1 . . . . . . 3 . . . 1 . . Core 4 | . . . . . . . 1 . . 1 . . 2 Reactor 3 | . . . . . . . . . . . 1 . 2 Propulsion 27 | 2 . . . . 2 2 4 2 . . 2 2 11 Treads 6 | 2 . . . . . 1 . . . . . . 3 Leg . | . . . . . . . . . . . . . . Wheel 21 | . . . . . 2 1 4 2 . . 2 2 8 Hover . | . . . . . . . . . . . . . . Flight . | . . . . . . . . . . . . . . Utility 59 | 1 1 . 1 . 4 6 8 . . 8 3 7 20 Device 18 | . . . . . . . 2 . . 4 . 3 9 Storage 5 | 1 . . 1 . 1 . . . . . . . 2 Processor 6 | . . . . . . . 1 . . 1 . . 4 Hackware . | . . . . . . . . . . . . . . Protection 30 | . 1 . . . 3 6 5 . . 3 3 4 5 Artifact . | . . . . . . . . . . . . . . Weapon 47 | 2 2 . . . 4 4 12 . . 5 5 2 11 Energy Gun 14 | 1 . . . . 2 . 5 . . . 1 2 3 Energy Cannon 5 | . . . . . . . 1 . . 2 1 . 1 Ballistic Gun 18 | 1 2 . . . 2 3 4 . . 2 . . 4 Ballistic Cannon 4 | . . . . . . . 1 . . 1 2 . . Launcher 2 | . . . . . . . 1 . . . . . 1 Special Weapon . | . . . . . . . . . . . . . . Impact Weapon 2 | . . . . . . 1 . . . . . . 1 Slashing Weapon 2 | . . . . . . . . . . . 1 . 1 Piercing Weapon . | . . . . . . . . . . . . . . Special Melee Weapon . | . . . . . . . . . . . . . . Unidentified Prototypes 8 | . . . . . 1 . 7 . . . . . . Parts Lost 75 | . . . . . . 8 10 . . . 3 9 45 Power 4 | . . . . . . . . . . . . . 4 Propulsion 16 | . . . . . . 2 2 . . . 2 3 7 Utility 35 | . . . . . . 4 4 . . . . 6 21 Weapon 20 | . . . . . . 2 4 . . . 1 . 13 Highest Loss Streak 13 | . . . . . . 3 4 . . . 1 4 13 To Critical Strikes . | . . . . . . . . . . . . . . Average Backups 14 | 3 7 8 8 11 15 15 15 15 17 16 16 15 13 Power 2 | . 1 1 1 1 1 2 1 1 1 1 1 3 3 Propulsion 1 | 1 2 2 2 2 1 . 2 1 3 2 1 1 1 Utility 4 | . . . . 2 5 6 4 4 4 4 5 4 4 Weapon 6 | 1 4 5 5 6 6 7 7 9 8 8 7 6 3 Tool/Special . | . . . . . . . . . . . . . . Unused Backups 26 | . . . . . 1 2 6 . 1 4 2 . 10 Power 7 | . . . . . . . 2 . . 1 1 . 3 Propulsion 2 | . . . . . . . . . . . . . 2 Utility 8 | . . . . . . 1 3 . . . . . 4 Weapon 8 | . . . . . 1 1 1 . 1 2 1 . 1 Tool/Special 1 | . . . . . . . . . . 1 . . . Average Slot Usage (%) 89 | . 96 100 100 100 93 94 99 100 100 89 81 80 77 Engine 5 | . 14 14 14 14 9 9 7 9 9 2 2 . . Core 1 | . . . . . . . 1 . . 3 1 . 5 Reactor 1 | . . . . . . . . . . . 1 6 4 Treads 4 | . 28 28 28 28 4 5 . . . . . . 1 Wheel 10 | . . . . . 13 12 16 18 18 13 8 12 6 Device 6 | . . . . . . . 6 9 9 12 6 10 14 Storage 7 | . 14 14 14 14 9 9 9 9 9 6 6 6 5 Processor 5 | . . . . . . . 7 9 9 6 6 6 9 Protection 19 | . 11 14 14 14 29 31 21 18 18 19 19 19 8 Energy Gun 1 | . . . . . . . 1 . . . 1 6 4 Energy Cannon 2 | . . . . . . . . . . . 17 . 1 Ballistic Gun 16 | . 26 28 28 28 26 26 24 27 27 20 3 . 3 Ballistic Cannon 1 | . . . . . . . 1 . . 2 . 9 2 Peak Build Rating 99 | 6 10 10 13 14 24 35 41 37 37 72 86 90 99 Average Rating 50 | 3 9 10 10 13 21 30 37 37 37 55 75 85 73 On Entrance 31 | . 6 10 10 13 14 24 35 37 37 37 72 86 66 Naked Turns . | . . . . . . . . . . . . . . Heaviest Build 168 | 13 17 17 32 32 76 81 84 69 69 114 127 130 168 Greatest Support 55 | 40 40 40 40 40 40 26 26 26 26 26 32 28 55 Greatest Overweight (x) 11 | . . . . . 2 8 8 2 2 4 7 10 11 Average Overweight (x) 3 | . . . . . 1 5 3 2 2 2 5 4 5 Largest Inventory Capacity 20 | 8 8 8 15 15 20 20 20 20 20 20 20 20 20 Average Capacity 18 | 7 8 8 11 15 18 20 20 20 20 20 20 20 19 Most Carried 20 | 7 8 8 14 15 20 20 20 20 20 20 20 20 20 Average Carried 17 | 4 7 8 9 14 18 18 18 18 19 19 19 18 17 Final Capacity 20 | 8 8 8 15 15 20 20 20 20 20 20 20 20 5 Final Carried 20 | 4 8 8 14 15 20 17 18 20 20 20 20 16 3 Class Distribution -------------------- 47% | Tank 25% | Scavenger-Tank 11% | Mutant 5% | Scavenger-Mutant 3% | Commander-Tank Dominant Class ---------------- Mutant | -10/Materials Mutant | -10/Mines Mutant | -10/Exiles Mutant | -9/Mines Tank | -8/Materials Tank | -8/Garrison Scavenger-Tank | -8/Storage Scavenger-Tank | -8/Recycling Scavenger-Tank | -8/Scraptown Scavenger-Tank | -6/Factory Tank | -6/Garrison Tank | -6/Factory Scavenger-Tank | -5/Factory Resources | -11 -10 -10 -10 -9 -8 -8 -8 -8 -8 -6 -6 -6 -5 ----------- Run | Yrd Mat Min Exi Min Mat Gar Sto Rec Scr Fac Gar Fac Fac Matter Collected 7883 | 174 276 . 20 . 530 1008 1388 158 43 463 577 731 2515 Remotely . | . . . . . . . . . . . . . . Salvage Created 10526 | . 277 . . . 663 796 2470 106 . 525 1643 1008 3038 Parts 547 | . 13 . . . 47 56 123 2 . 44 67 65 130 Haulers Intercepted 8 | . . . . . 2 . 4 . . . . 1 1 Recyclers Shooed 2 | . . . . . . . 1 . . . . 1 . Parts Field Recycled 14 | . . . . . . . . . . 14 . . . Retrieved Matter 256 | . . . . . . . . . . 256 . . . Parts Self-Destructed . | . . . . . . . . . . . . . . Prevented . | . . . . . . . . . . . . . . Kills | -11 -10 -10 -10 -9 -8 -8 -8 -8 -8 -6 -6 -6 -5 ------- Run | Yrd Mat Min Exi Min Mat Gar Sto Rec Scr Fac Gar Fac Fac Combat Hostiles Destroyed 200 | . 7 . . . 15 24 37 . . 9 29 27 52 Melee 7 | . . . . . . . . . . . . . 7 Guns 119 | . 7 . . . 15 24 36 . . 6 3 6 22 Cannons 56 | . . . . . . . 1 . . 3 22 18 12 AOE 10 | . . . . . . . . . . . . 3 7 Classes Destroyed 20 | . 3 . . . 5 3 6 . . . 2 1 . Worker 20 | . . . . . 1 . 4 . . . . 2 13 Builder 14 | . . . . . 1 . 3 1 . 1 . 4 4 Hauler 8 | . . . . . 2 . 4 . . . . 1 1 Recycler 7 | . . . . . 1 . 4 1 . . . . 1 Mechanic 3 | . . . . . . . 2 . . . . . 1 Operator 2 | . . . . . . . 1 . . . . 1 . Watcher 7 | . 2 . . . 1 . 1 . . 1 . 1 1 Swarmer 47 | . 3 . . . 10 12 . . . . 11 7 4 Saboteur 2 | . . . . . . . . . . . 1 1 . Grunt 60 | . 4 . . . 1 4 18 . . . 7 10 16 Brawler 11 | . . . . . . . 2 . . . . 1 8 Duelist 7 | . . . . . . . 3 . . . . 1 3 Protector 3 | . . . . . . . 2 . . . . . 1 Sentry 28 | . . . . . 4 2 10 . . 4 6 1 1 Demolisher 2 | . . . . . . . 2 . . . . . . Specialist 1 | . . . . . . 1 . . . . . . . Hunter 8 | . . . . . . 2 . . . . . 1 5 Programmer 26 | . . . . . . 3 . . . 5 2 2 14 Heavy 3 | . . . . . . . . . . . . 3 . Behemoth 2 | . . . . . . . . . . . 2 . . Best Kill Streak 12 | . 9 . . . 8 4 8 2 . 3 5 12 9 Combat Bots Only 10 | . 7 . . . 6 4 6 . . 2 5 10 7 Max Kills in Single Turn 5 | . 1 . . . 2 3 3 1 . 2 3 5 5 Gunslinging 2 | . . . . . 1 2 2 . . . . . . Exploded 3 | . . . . . . . . . . . . 2 3 Melee 1 | . . . . . . . . . . . . . 1 Uniques/NPCs Destroyed . | . . . . . . . . . . . . . . Combat | -11 -10 -10 -10 -9 -8 -8 -8 -8 -8 -6 -6 -6 -5 -------- Run | Yrd Mat Min Exi Min Mat Gar Sto Rec Scr Fac Gar Fac Fac Hostile Shots Fired 1298 | . 22 . . . 49 121 152 . . 59 229 186 480 Missed 368 | . 8 . . . 15 34 32 . . 25 78 61 115 Hits 930 | . 14 . . . 34 87 120 . . 34 151 125 365 Melee 38 | . . . . . . 1 5 . . . 1 . 31 Projectile 892 | . 14 . . . 34 86 115 . . 34 150 125 334 AOE 12 | . . . . . . 1 10 . . 1 . . . Critical Strikes 42 | . . . . . . 2 4 . . 1 1 5 29 Part Disruptions 1 | . . . . . . . . . . . . . 1 Damage Taken 15866 | . 158 . . . 312 1259 2291 . . 403 1824 2225 7394 Core 1697 | . 47 . . . 52 127 189 . . 117 114 46 1005 Absorbed by Shields 1256 | . . . . . . . . . . . . 400 856 Redirected to Shielding 51 | . 12 . . . 9 30 . . . . . . . Ignored by Resistances 20 | . . . . . . . . . . . . . 20 Regen/Repaired (Parts) 311 | . . . . . . . 82 . . . . . 229 Core Remaining (%) 70 | 100 . . . 81 . . . . 33 . . 67 . Volleys Fired 555 | . 20 . . . 35 76 110 3 . 24 63 73 151 Largest 4 | . 2 . . . 3 3 3 3 . 4 4 4 4 Hottest 372 | . 46 . . . 69 90 131 73 . 230 295 372 303 Shots Fired 1381 | . 40 . . . 105 222 316 9 . 78 202 133 276 Gun 1011 | . 40 . . . 105 222 301 9 . 60 36 56 182 Cannon 362 | . . . . . . . 15 . . 18 166 77 86 Launcher 8 | . . . . . . . . . . . . . 8 Special . | . . . . . . . . . . . . . . Kinetic 999 | . 40 . . . 105 222 296 9 . 75 36 70 146 Thermal 351 | . . . . . . . 20 . . 3 166 63 99 Explosive 8 | . . . . . . . . . . . . . 8 Electromagnetic 23 | . . . . . . . . . . . . . 23 Robot Hit Streak 21 | . 8 . . . 13 12 15 3 . 14 18 14 21 Robot Miss Streak 6 | . 2 . . . 5 5 5 1 . 4 4 3 6 Penetration Max 2 | . . . . . . . 2 . . . . 1 1 Secondary Targets 17 | . . . . . 2 8 6 . . . . . 1 Max Gunslinging Chain 2 | . . . . . 1 2 2 . . . . . 1 Shots Hit Robots 863 | . 26 . . . 61 116 201 5 . 40 101 82 231 Core Hits 418 | . 12 . . . 31 39 92 3 . 18 43 43 137 Critical Kills 13 | . . . . . . 2 4 . . 1 3 . 3 Critical Parts Destroyed 10 | . . . . . . 2 5 . . 2 . . 1 Critical Strikes 47 | . . . . . . 4 10 . . 4 4 6 19 Burn 1 | . . . . . . . 1 . . . . . . Meltdown 5 | . . . . . . . . . . . 3 . 2 Destroy 18 | . . . . . . 4 9 . . 3 . . 2 Blast 13 | . . . . . . . . . . 1 . 6 6 Smash 1 | . . . . . . . . . . . . . 1 Sever 9 | . . . . . . . . . . . 1 . 8 Melee Attacks 88 | . . . . . . 6 . . . . 12 . 70 Impact 9 | . . . . . . 6 . . . . . . 3 Slashing 79 | . . . . . . . . . . . 12 . 67 Piercing . | . . . . . . . . . . . . . . Sneak Attacks 8 | . . . . . . . . . . . . . 8 Combat Hostiles 3 | . . . . . . . . . . . . . 3 Follow-up Attacks 2 | . . . . . . . . . . . . . 2 Damage Inflicted 29895 | . 411 . . . 958 1977 4634 88 . 865 3690 5321 11951 Guns 13769 | . 411 . . . 958 1977 4503 88 . 541 192 1062 4037 Cannons 9864 | . . . . . . . 131 . . 324 2740 3174 3495 Explosions 3823 | . . . . . . . . . . . . 1085 2738 Melee 2439 | . . . . . . . . . . . 758 . 1681 Ramming . | . . . . . . . . . . . . . . Kinetic 17091 | . 411 . . . 958 1977 4378 88 . 770 192 2983 5334 Thermal 6771 | . . . . . . . 256 . . 95 2740 1724 1956 Explosive 3347 | . . . . . . . . . . . . 614 2733 Electromagnetic 247 | . . . . . . . . . . . . . 247 Impact 114 | . . . . . . . . . . . . . 114 Slashing 2325 | . . . . . . . . . . . 758 . 1567 Piercing . | . . . . . . . . . . . . . . Highest Corruption 29 | . . . . . . . . . . 1 4 10 29 Average Corruption 8 | . . . . . . . . . . 1 3 6 18 Corruption Purged . | . . . . . . . . . . . . . . Corruption Blocked . | . . . . . . . . . . . . . . Effects 169 | . . . . . . . . . . 4 36 40 89 Message Errors 37 | . . . . . . . . . . . 8 9 20 Matter Fused 38 | . . . . . . . . . . . 8 7 23 Heat Flow Errors 15 | . . . . . . . . . . . 2 5 8 Energy Discharges 20 | . . . . . . . . . . 2 6 7 5 Parts Rejected 5 | . . . . . . . . . . . . . 5 Parts Fused 5 | . . . . . . . . . . . . 2 3 Data Loss (minor) 19 | . . . . . . . . . . 1 3 3 12 Data Loss (major) 9 | . . . . . . . . . . . 4 1 4 Misfires 3 | . . . . . . . . . . . . 2 1 Alerts 7 | . . . . . . . . . . . 2 1 4 Misdirections 2 | . . . . . . . . . . . . . 2 Weapon Failures 9 | . . . . . . . . . . 1 3 3 2 Overload Shots . | . . . . . . . . . . . . . . Overflow Damage 1339 | . . . . . . . . . . . 129 354 856 Projectiles 692 | . . . . . . . . . . . 81 295 316 Explosions 352 | . . . . . . . . . . . . 59 293 Melee 295 | . . . . . . . . . . . 48 . 247 Knockbacks 20 | . . . . . . . 2 . . . . 8 10 Impact 1 | . . . . . . . . . . . . . 1 Kinetic 19 | . . . . . . . 2 . . . . 8 9 Secondary . | . . . . . . . . . . . . . . Self-Inflicted Damage 142 | . . . . . . . . . . . . . 142 Shots 4 | . . . . . . . . . . . . . 4 Rammed . | . . . . . . . . . . . . . . Targets Rammed . | . . . . . . . . . . . . . . Kicked . | . . . . . . . . . . . . . . Crushed . | . . . . . . . . . . . . . . Highest Temperature 1230 | . 26 . . . 153 291 353 84 . 60 139 474 1230 Average Temperature 114 | . 11 . . . 51 88 93 39 . 24 26 183 169 Received Heat Transfer 3330 | . 63 . . . 36 93 927 . . 60 339 205 1607 Effects 37 | . . . . . . . 4 . . . . 3 30 Shutdowns 14 | . . . . . . . 2 . . . . 1 11 Energy Bleed 4 | . . . . . . . . . . . . 1 3 Interference 4 | . . . . . . . 1 . . . . . 3 Matter Decay 3 | . . . . . . . 1 . . . . . 2 Short Circuit 2 | . . . . . . . . . . . . 1 1 Damage (minor) 2 | . . . . . . . . . . . . . 2 Damage (major) 7 | . . . . . . . . . . . . . 7 Damage (core) 1 | . . . . . . . . . . . . . 1 Siege Activations . | . . . . . . . . . . . . . . Martial Activations . | . . . . . . . . . . . . . . Shielding Activations . | . . . . . . . . . . . . . . Robots Disrupted 1 | . . . . . . . . . . . . . 1 Combat Hostiles 1 | . . . . . . . . . . . . . 1 Robots Corrupted 2 | . . . . . . . . . . . . . 2 Combat Hostiles 2 | . . . . . . . . . . . . . 2 Parts Fried 3 | . . . . . . . . . . . . . 3 Impact Corruptions 3 | . . . . . . . . . . . . . 3 Robots Melted 6 | . . . . . . . . . . . 4 . 2 Combat Hostiles 6 | . . . . . . . . . . . 4 . 2 Parts Melted 35 | . . . . . . . 2 . . . 21 3 9 Heat Transferred 9326 | . . . . . . . 555 . . 150 4150 1969 2502 Parts Sabotaged 3 | . . . . . . . . . . . 1 . 2 Parts Stolen . | . . . . . . . . . . . . . . Parts Stripped . | . . . . . . . . . . . . . . Power Chain Reactions . | . . . . . . . . . . . . . . Alert | -11 -10 -10 -10 -9 -8 -8 -8 -8 -8 -6 -6 -6 -5 ------- Run | Yrd Mat Min Exi Min Mat Gar Sto Rec Scr Fac Gar Fac Fac Maximum Alert Level 5 | . . . . . . 5 4 2 . . 5 4 4 Low Security (%) 23 | 100 100 100 . 100 100 4 . . . 100 8 . . Level 1 6 | . . . . . . 17 . . . . 21 . . Level 2 6 | . . . . . . 8 . 100 . . 10 . 5 Level 3 33 | . . . . . . 19 37 . . . 18 41 84 Level 4 25 | . . . . . . 34 62 . . . 30 58 10 Level 5 4 | . . . . . . 16 . . . . 10 . . High Security . | . . . . . . . . . . . . . . Max Security . | . . . . . . . . . . . . . . Peak Influence 1834 | . 164 6 . . 198 1834 1492 577 . 102 1682 1523 1581 Initial 893 | . . 6 . . . 123 893 577 . . 55 882 716 Average 808 | . 66 . . . 63 1010 1176 511 . 35 871 1211 992 Influence Increases 9267 | . 198 . . . 459 1891 1474 15 . 390 1697 1198 1945 Destroy 0b10 Robot/C 4600 | . 140 . . . 300 800 760 . . 180 780 620 1020 Destroy 0b10 Robot/NC 350 | . 10 . . . 30 . 105 10 . 10 20 55 110 Destroy Leader 820 | . 34 . . . 76 20 190 . . 92 30 144 234 Allied During Kill 262 | . . . . . . 131 53 . . . 52 26 . Successful Hack 146 | . 14 . . . 6 7 32 5 . 39 14 5 24 Disable Machine 480 | . . . . . . 15 90 . . 45 45 105 180 Anti-Garrison Action 1800 | . . . . . . 850 150 . . . 650 150 . Destroy Structure 554 | . . . . . 2 68 34 . . 24 76 78 272 Partial Spotted 15 | . . . . . . . 15 . . . . . . Lose Combat Pursuer 240 | . . . . . 45 . 45 . . . 30 15 105 Influence Decreases 7767 | . 180 18 . . 269 247 1826 1055 442 311 94 1416 1909 Entered New Map 3939 | . . 12 . . . 67 941 905 442 . 24 800 748 Time Decay 2668 | . 180 6 . . 259 . 565 150 . 311 . 486 711 Lost Part 750 | . . . . . . 80 100 . . . 30 90 450 Lost Ally 410 | . . . . . 10 100 220 . . . 40 40 . Squads Dispatched 46 | . 1 . . . . . 11 . . 3 . 12 19 Investigation 3 | . . . . . . . 1 . . . . 2 . Extermination 10 | . . . . . . . . . . 2 . 2 6 Reinforcement 15 | . 1 . . . . . 2 . . 1 . 5 6 Assault 18 | . . . . . . . 8 . . . . 3 7 Garrison . | . . . . . . . . . . . . . . Intercept . | . . . . . . . . . . . . . . Searches Triggered . | . . . . . . . . . . . . . . Construction Impeded 3 | . . . . . . . . . . . . 1 2 Haulers Reinforced 2 | . . . . . . . . . . . . 1 1 Active Scanning Responses . | . . . . . . . . . . . . . . Cargo Convoy Interrupts 1 | . . . . . . . . . . . . 1 . Stealth | -11 -10 -10 -10 -9 -8 -8 -8 -8 -8 -6 -6 -6 -5 --------- Run | Yrd Mat Min Exi Min Mat Gar Sto Rec Scr Fac Gar Fac Fac Distress Signals 18 | . 2 . . . 3 . 5 . . . . 3 5 Communications Jammed . | . . . . . . . . . . . . . . Distress Signals . | . . . . . . . . . . . . . . Times Spotted 304 | . 11 . . . 24 38 56 . . 12 35 36 92 Peak Tracking Total 11 | . 6 . . . 6 4 7 . . 3 5 6 11 Tactical Retreats 14 | . . . . . 1 . 3 . . . 2 1 7 Traps | -11 -10 -10 -10 -9 -8 -8 -8 -8 -8 -6 -6 -6 -5 ------- Run | Yrd Mat Min Exi Min Mat Gar Sto Rec Scr Fac Gar Fac Fac Traps Triggered 24 | . . . . . . 14 1 . . 1 4 2 2 Indirectly . | . . . . . . . . . . . . . . Trap Hack Attempts . | . . . . . . . . . . . . . . Triggered . | . . . . . . . . . . . . . . Disarmed . | . . . . . . . . . . . . . . Reprogrammed . | . . . . . . . . . . . . . . Reused . | . . . . . . . . . . . . . . Traps Extracted . | . . . . . . . . . . . . . . Installed . | . . . . . . . . . . . . . . Triggered . | . . . . . . . . . . . . . . Objects Rigged 13 | . . . . . . . . . . 13 . . . Machines | -11 -10 -10 -10 -9 -8 -8 -8 -8 -8 -6 -6 -6 -5 ---------- Run | Yrd Mat Min Exi Min Mat Gar Sto Rec Scr Fac Gar Fac Fac Machines Disabled 50 | . . . . . . 7 7 . . 3 13 8 12 Max in Single Turn 4 | . . . . . . 2 1 . . 2 2 4 2 Garrison Access 2 | . . . . . . . 1 . . . . 1 . Garrison Relay 11 | . . . . . . 4 . . . . 7 . . Phase Generator 2 | . . . . . . 1 . . . . 1 . . Machines Repaired . | . . . . . . . . . . . . . . Machines Dismantled . | . . . . . . . . . . . . . . Machines Sabotaged . | . . . . . . . . . . . . . . Overloaded Fab Kills . | . . . . . . . . . . . . . . Hacking | -11 -10 -10 -10 -9 -8 -8 -8 -8 -8 -6 -6 -6 -5 --------- Run | Yrd Mat Min Exi Min Mat Gar Sto Rec Scr Fac Gar Fac Fac Machines Accessed 46 | . 5 . 2 . 5 4 9 4 . 7 4 3 3 Terminals 33 | . 5 . . . 4 4 8 3 . 2 4 2 1 Fabricators 1 | . . . . . . . . . . 1 . . . Repair Stations 4 | . . . . . . . 1 . . . . 1 2 Recycling Units 2 | . . . . . . . . 1 . 1 . . . Scanalyzers 1 | . . . . . . . . . . 1 . . . Garrison Access 3 | . . . . . 1 . . . . 2 . . . Total Hacks 107 | . 15 . 4 . 9 8 26 9 . 14 5 10 7 Successful 47 | . 6 . 4 . 5 1 14 3 . 7 1 3 3 Failed 59 | . 9 . . . 4 7 12 5 . 7 4 7 4 Catastrophic 9 | . 2 . . . . . 1 2 . . 3 . 1 Database Lockouts 1 | . . . . . . . . 1 . . . . . Manual 32 | . 9 . 1 . 2 . 6 6 . 3 . 4 1 Terminals 78 | . 15 . . . 8 8 23 8 . 3 5 7 1 Fabricators 2 | . . . . . . . . . . 2 . . . Repair Stations 12 | . . . . . . . 3 . . . . 3 6 Recycling Units 3 | . . . . . . . . 1 . 2 . . . Scanalyzers 4 | . . . . . . . . . . 4 . . . Garrison Access 4 | . . . . . 1 . . . . 3 . . . Terminal Hacks 26 | . 4 . 4 . 2 1 11 1 . . 1 2 . Record 4 | . 1 . 3 . . . . . . . . . . Robot Schematic 1 | . . . . . . . 1 . . . . . . Robot Analysis 2 | . 1 . . . . . . 1 . . . . . Prototype ID Bank 4 | . . . . . 1 . 2 . . . . 1 . Open Door 3 | . . . . . . 1 2 . . . . . . Emergency Access Points 1 | . . . . . . . . . . . 1 . . Alert Level 2 | . . . . . . . 1 . . . . 1 . Locate Traps 2 | . 1 . . . . . 1 . . . . . . Dispatch Records 2 | . 1 . . . . . 1 . . . . . . Zone Layout 4 | . . . . . 1 . 3 . . . . . . Proto ID Catalog 1 | . . . 1 . . . . . . . . . . Fabricator Hacks 2 | . . . . . . . . . . 2 . . . Network Status 1 | . . . . . . . . . . 1 . . . Build 1 | . . . . . . . . . . 1 . . . Repair Station Hacks 6 | . . . . . . . 2 . . . . 1 3 Scan Component 4 | . . . . . . . 1 . . . . 1 2 Repair 2 | . . . . . . . 1 . . . . . 1 Recycling Unit Hacks 1 | . . . . . . . . 1 . . . . . Report Inventory 1 | . . . . . . . . 1 . . . . . Scanalyzer 1 | . . . . . . . . . . 1 . . . Insert Component 1 | . . . . . . . . . . 1 . . . Garrison Access Hacks 2 | . . . . . 1 . . . . 1 . . . Unlock Access 2 | . . . . . 1 . . . . 1 . . . Unauthorized Hacks 9 | . 2 . . . 2 . 1 1 . 3 . . . Terminals 7 | . 2 . . . 2 . 1 1 . 1 . . . Track 1 | . . . . . . . 1 . . . . . . Assimilate 2 | . . . . . 2 . . . . . . . . Botnet 2 | . 1 . . . . . . 1 . . . . . Detonate 1 | . . . . . . . . . . 1 . . . Operators 1 | . 1 . . . . . . . . . . . . Fabricators . | . . . . . . . . . . . . . . Repair Stations . | . . . . . . . . . . . . . . Recycling Units 2 | . . . . . . . . . . 2 . . . Monitor 1 | . . . . . . . . . . 1 . . . Recyclers 1 | . . . . . . . . . . 1 . . . Scanalyzers . | . . . . . . . . . . . . . . Garrison Access . | . . . . . . . . . . . . . . Data Cores Recovered 1 | . . . . . . . . . . . . 1 . Used . | . . . . . . . . . . . . . . Hacking Detections 37 | . 3 . . . 4 4 6 3 . 7 4 3 3 Full Trace Events 6 | . 1 . . . . . 1 1 . . 1 2 . Feedback Events 1 | . . . . . . . . . . . 1 . . Corruption 1 | . . . . . . . . . . . 1 . . Feedback Blocked . | . . . . . . . . . . . . . . Robot Schematics Acquired 1 | . . . . . . . 1 . . . . . . Robots Built . | . . . . . . . . . . . . . . Authchips . | . . . . . . . . . . . . . . Time . | . . . . . . . . . . . . . . Total Robot Build Rating . | . . . . . . . . . . . . . . Part Schematics Acquired . | . . . . . . . . . . . . . . Parts Built 1 | . . . . . . . . . . 1 . . . Authchips . | . . . . . . . . . . . . . . Time 102 | . . . . . . . . . . 102 . . . Total Part Build Rating 8 | . . . . . . . . . . 8 . . . Parts Repaired 2 | . . . . . . . 1 . . . . . 1 Time 78 | . . . . . . . 50 . . . . . 28 Parts Recycled . | . . . . . . . . . . . . . . Recycled Matter . | . . . . . . . . . . . . . . Retrieved Matter . | . . . . . . . . . . . . . . Retrieved Components . | . . . . . . . . . . . . . . Parts Scanalyzed 1 | . . . . . . . . . . 1 . . . Part Schematics Acquired . | . . . . . . . . . . . . . . Parts Damaged 1 | . . . . . . . . . . 1 . . . Bothacking | -11 -10 -10 -10 -9 -8 -8 -8 -8 -8 -6 -6 -6 -5 ------------ Run | Yrd Mat Min Exi Min Mat Gar Sto Rec Scr Fac Gar Fac Fac Used RIF Installer . | . . . . . . . . . . . . . . Robots Hacked . | . . . . . . . . . . . . . . Non-combat . | . . . . . . . . . . . . . . Combat . | . . . . . . . . . . . . . . Robot Hacks Applied . | . . . . . . . . . . . . . . Relay Couplers Released 43 | . . . . . . 12 1 . . . 25 2 3 Machine Destruction 40 | . . . . . . 12 1 . . . 25 2 . Programmers 3 | . . . . . . . . . . . . . 3 Fabnet Peak Effective % . | . . . . . . . . . . . . . . Robots Rewired 13 | . . . . . . 9 . . . . 4 . . Allies Hacked . | . . . . . . . . . . . . . . Hacks Repelled . | . . . . . . . . . . . . . . Allies | -11 -10 -10 -10 -9 -8 -8 -8 -8 -8 -6 -6 -6 -5 -------- Run | Yrd Mat Min Exi Min Mat Gar Sto Rec Scr Fac Gar Fac Fac Total Allies 24 | . . . . . 1 9 10 . . . 4 . . Largest Group 10 | . . . . . 1 6 10 . . . 3 2 . Highest-Rated Group 173 | . . . . . 10 164 173 . . . 116 64 . Highest-Rated Ally 116 | . . . . . 10 39 34 . . . 116 32 . Initial Warlord ECA Mod 82 | . . . . . . . 9 9 9 7 7 21 20 Total Orders . | . . . . . . . . . . . . . . Ally Attacks 145 | . . . . . . 56 43 . . . 24 22 . Total Damage 3580 | . . . . . . 1145 556 . . . 1126 753 . Kills 36 | . . . . . . 17 3 . . . 10 6 . Allies Corrupted 2 | . . . . . . 2 . . . . . . . Allies Melted 1 | . . . . . . . 1 . . . . . . Intel | -11 -10 -10 -10 -9 -8 -8 -8 -8 -8 -6 -6 -6 -5 ------- Run | Yrd Mat Min Exi Min Mat Gar Sto Rec Scr Fac Gar Fac Fac Active Infowar (turns) . | . . . . . . . . . . . . . . Robot Analysis Total 2 | . 1 . . . . . . 1 . . . . . Derelict Logs Recovered 2 | . . 1 . 1 . . . . . . . . . Drone Launches . | . . . . . . . . . . . . . . Drone Recoveries . | . . . . . . . . . . . . . . Exploration | -11 -10 -10 -10 -9 -8 -8 -8 -8 -8 -6 -6 -6 -5 ------------- Run | Yrd Mat Min Exi Min Mat Gar Sto Rec Scr Fac Gar Fac Fac Turns Passed 15575 | 70 495 157 621 344 762 2695 1695 301 745 1183 2044 1263 3200 Spaces Moved 8097 | 46 269 99 386 215 452 1387 869 239 620 719 981 589 1226 Core 17 | 17 . . . . . . . . . . . . . Treads 1219 | 29 269 99 386 215 81 . . . . . . . 140 Legs . | . . . . . . . . . . . . . . Wheels 6861 | . . . . . 371 1387 869 239 620 719 981 589 1086 Hover . | . . . . . . . . . . . . . . Flight . | . . . . . . . . . . . . . . Fastest Speed 50 | 50 160 160 160 160 120 120 120 120 120 120 140 140 140 Average Speed 153 | 119 160 160 160 160 127 162 131 120 120 134 175 153 181 Slowest Speed 325 | 160 160 160 160 160 240 200 200 120 120 150 205 240 325 Overloaded Moves . | . . . . . . . . . . . . . . Propulsion Burnouts . | . . . . . . . . . . . . . . Robots Hopped . | . . . . . . . . . . . . . . Potential Cave-ins . | . . . . . . . . . . . . . . Cave-ins Triggered . | . . . . . . . . . . . . . . Exploration Rate (%) 51 | 3 47 23 68 77 38 98 92 68 43 23 93 19 31 Regions Visited 13 Branch Regions 6 Pre-discovered Areas 2 | . . 1 1 . . . . . . . . . . Known Exits Taken 2 | . . . . . 1 . . . . 1 . . . Unknown Exits Taken 9 | 1 1 1 1 1 . . 1 1 1 . . 1 . Scrap Searched 9 | . . . . 1 . . . . 8 . . . . Spaces Dug 66 | . . . . . . 1 . . . 19 . 13 33 Terrain Destroyed 402 | . . . . . . 99 33 . . 21 8 86 155 Melee 10 | . . . . . . 1 . . . . . . 9 Projectile 139 | . . . . . . 8 33 . . 5 . 38 55 AOE 252 | . . . . . . 89 . . . 16 8 48 91 Terrain Rammed . | . . . . . . . . . . . . . . Walls Destroyed . | . . . . . . . . . . . . . . Machines Disabled . | . . . . . . . . . . . . . . Actions | -11 -10 -10 -10 -9 -8 -8 -8 -8 -8 -6 -6 -6 -5 --------- Run | Yrd Mat Min Exi Min Mat Gar Sto Rec Scr Fac Gar Fac Fac Total 10165 | 61 302 98 390 215 580 1687 1212 248 621 905 1164 790 1892 Wait 748 | . 3 . . . 64 44 151 3 . 101 15 98 269 Move 8083 | 45 268 98 385 214 451 1385 868 238 619 718 980 588 1226 Hop . | . . . . . . . . . . . . . . Pick Up 148 | 10 6 . 3 1 12 7 23 2 1 13 8 8 54 Fast Attach 30 | . 1 . . . 3 3 4 . . 6 4 . 9 Attach 104 | 6 2 . . . 3 6 10 . . 3 2 15 57 Detach 20 | . . . . . . . 2 . . 1 2 4 11 Swap 65 | . . . 1 . 5 6 23 2 . 12 8 . 8 Drop 94 | . 2 . 1 . 7 6 20 . 1 19 12 4 22 Fire 555 | . 20 . . . 35 76 110 3 . 24 63 73 151 Melee 85 | . . . . . . 6 . . . . 12 . 67 Ram . | . . . . . . . . . . . . . . Kick . | . . . . . . . . . . . . . . Crush . | . . . . . . . . . . . . . . Escape Stasis 112 | . . . . . . 64 . . . 8 24 . 16 Rewire 121 | . . . . . . 84 1 . . . 34 . 2 Trap . | . . . . . . . . . . . . . . Miscellaneous . | . . . . . . . . . . . . . . Route ------- -11/Scrapyard -10/Materials -10/Mines -10/Exiles (discovered 2 exits: [*Min x2]) -9/Mines -8/Materials (discovered 3 exits: *Fac x2 / Gar) -8/Garrison (discovered 3 exits: *Sto x3) -8/Storage (discovered 2 exits: *Fac / *Rec) -8/Recycling -8/Scraptown -6/Factory (discovered 2 exits: *Low / Gar) -6/Garrison (discovered 3 exits: *Fac x3) -6/Factory -5/Factory (discovered 2 exits: *Fac x2) History --------- Turn | Location | Event 12 | -11/Scrapyard | Discovered new exit (range 16) 71 | -11/Scrapyard | Entered Materials 248 | -10/Materials | Destroyed 7 combat bots 284 | -10/Materials | Discovered new exit (range 14) 306 | -10/Materials | Build established: Mutant 566 | -10/Materials | Entered Mines 640 | -10/Mines | Deemed a non-threat by the Exiles lab entrance 640 | -10/Mines | Discovered new exit (range 5) 666 | -10/Mines | Learned location of Zion (-6) 723 | -10/Mines | Entered Exiles 747 | -10/Exiles | Discovered new exit (range 15) 762 | -10/Exiles | Met 8R-AWN 786 | -10/Exiles | Met EX-HEX 839 | -10/Exiles | Met EX-BIN 861 | -10/Exiles | Aligned with FarCom system 863 | -10/Exiles | Given EX-Vault access code 899 | -10/Exiles | Opened EX-Vault 939 | -10/Exiles | Warned to stay clear of 0b10 Research branches 1147 | -10/Exiles | Found XL Autogun Array 1228 | -10/Exiles | Met EX-DEC 1331 | -10/Exiles | Discovered new exit (range 10) 1344 | -10/Exiles | Left Exiles lab with XL Autogun Array 1344 | -10/Exiles | Entered Mines 1428 | -9/Mines | Received a Rocket Launcher from a helpful Derelict 1587 | -9/Mines | Discovered new exit (range 8) 1688 | -9/Mines | Entered Materials 1688 | -8/Materials | Evolved 4 slots: Utility x3, Weapon x1 1689 | -8/Materials | Identified exit to Factory 2153 | -8/Materials | Build established: Tank 2428 | -8/Materials | Discovered exit to Factory (range 16) 2447 | -8/Materials | Identified exit to Garrison 2450 | -8/Materials | Entered Garrison 2508 | -8/Garrison | Triggered checkpoint 2573 | -8/Garrison | Garrison Relay disabled 2628 | -8/Garrison | Triggered checkpoint 2872 | -8/Garrison | Discovered new exit (range 10) 3020 | -8/Garrison | Triggered checkpoint 3032 | -8/Garrison | Triggered checkpoint 3142 | -8/Garrison | Build established: Commander-Tank 3200 | -8/Garrison | Triggered checkpoint 3221 | -8/Garrison | Garrison Relay disabled 3355 | -8/Garrison | Discovered new exit (range 4) 3420 | -8/Garrison | Lost 3 allies 3454 | -8/Garrison | Spotted B-75 Beast 3462 | -8/Garrison | Allies destroyed B-75 Beast 3506 | -8/Garrison | Lost 3 parts (1n2w) 3622 | -8/Garrison | Discovered new exit (range 9) 3708 | -8/Garrison | Triggered checkpoint 3757 | -8/Garrison | Garrison Relay disabled 3781 | -8/Garrison | Phase Generator disabled 3783 | -8/Garrison | Build established: Tank 3926 | -8/Garrison | Triggered checkpoint 4234 | -8/Garrison | Triggered checkpoint 4241 | -8/Garrison | Garrison Relay disabled 4977 | -8/Garrison | Attempted to access garrison exit controls, blocked by remote lockdown 5145 | -8/Garrison | Entered Storage 5145 | -8/Storage | Accompanied by 1 ally 5419 | -8/Storage | Used back door to open Recycling access 5419 | -8/Storage | Discovered new exit (range 5) 5545 | -8/Storage | First assault squad dispatched 5849 | -8/Storage | Discovered exit to Factory (range 9) 5863 | -8/Storage | Assisted by bots powering up and referring to "LRC-V3" 6092 | -8/Storage | Core integrity fell below 50% 6228 | -8/Storage | Lost 4 parts (1n2u1w) 6397 | -8/Storage | Build established: Scavenger-Tank 6704 | -8/Storage | Repaired Bore Cannon 6840 | -8/Storage | Entered Recycling 7110 | -8/Recycling | Scanned before Scraplab entrance 7127 | -8/Recycling | Entered Scraplab 7139 | -8/Recycling | Discovered new exit (range 3) 7141 | -8/Recycling | Entered Scraptown 7293 | -8/Scraptown | Visited Cave Peace 7335 | -8/Scraptown | Visited Cyclists 7352 | -8/Scraptown | Visited Fellowship of the Rings 7378 | -8/Scraptown | Visited Symbiants 7390 | -8/Scraptown | Visited Shadow of the Wyrm 7401 | -8/Scraptown | Visited Bundlers 7469 | -8/Scraptown | Visited SPCMW 7491 | -8/Scraptown | Turned away by UFD registrar 7880 | -8/Scraptown | Discovered new exit (range 5) 7886 | -8/Scraptown | Entered Factory 7886 | -6/Factory | Evolved 4 slots: Utility x3, Weapon x1 8563 | -6/Factory | Discovered new exit (range 11) 8648 | -6/Factory | Identified exit to Lower Caves 8991 | -6/Factory | Fabricated Coolant Network (x1) 9068 | -6/Factory | Identified exit to Garrison 9069 | -6/Factory | Entered Garrison 9219 | -6/Garrison | Triggered checkpoint 9225 | -6/Garrison | Garrison Relay disabled 9287 | -6/Garrison | Build established: Tank 9375 | -6/Garrison | Triggered checkpoint 9448 | -6/Garrison | Discovered new exit (range 8) 9463 | -6/Garrison | Spotted B-75 Beast 9475 | -6/Garrison | Destroyed B-75 Beast 9533 | -6/Garrison | Rewired B-86 Titan 9643 | -6/Garrison | Triggered checkpoint 9677 | -6/Garrison | Garrison Relay disabled 9775 | -6/Garrison | Triggered checkpoint 9885 | -6/Garrison | Garrison Relay disabled 9887 | -6/Garrison | Phase Generator disabled 9891 | -6/Garrison | Garrison Relay disabled 9982 | -6/Garrison | Discovered new exit (range 8) 10027 | -6/Garrison | Triggered checkpoint 10053 | -6/Garrison | Garrison Relay disabled 10223 | -6/Garrison | Triggered checkpoint 10241 | -6/Garrison | Triggered checkpoint 10389 | -6/Garrison | Spotted B-75 Beast 10396 | -6/Garrison | Destroyed B-75 Beast 10497 | -6/Garrison | Discovered new exit (range 10) 10565 | -6/Garrison | Triggered checkpoint 10607 | -6/Garrison | Triggered checkpoint 10620 | -6/Garrison | Garrison Relay disabled 10887 | -6/Garrison | Triggered checkpoint 10954 | -6/Garrison | Garrison Relay disabled 11113 | -6/Garrison | Entered Factory 11113 | -6/Factory | Accompanied by 2 allies 11685 | -6/Factory | Destroyed 10 combat bots 11956 | -6/Factory | System corruption reached 10% 12038 | -6/Factory | Cargo convoy interrupted 12163 | -6/Factory | First assault squad dispatched 12202 | -6/Factory | Discovered new exit (range 16) 12260 | -6/Factory | Lost 4 parts (1n3u) 12376 | -6/Factory | Entered another Factory area 12376 | -5/Factory | Evolved 2 slots: Power x1, Utility x1 12432 | -5/Factory | Repaired Hvy. Mass Driver 12676 | -5/Factory | First assault squad dispatched 13121 | -5/Factory | Discovered new exit (range 16) 13153 | -5/Factory | Lost 5 parts (3n1u1w) 13447 | -5/Factory | Build established: Scavenger-Skirmisher 13527 | -5/Factory | Found Imp. Powered Armor 13753 | -5/Factory | Lost 4 parts (1p1u2w) 13803 | -5/Factory | Lost 5 parts (2n2u1w) 13808 | -5/Factory | Specialist reinforcements revealed to be Infiltrators 13809 | -5/Factory | P-70 Sage assimilated allied JI-754(x) 13986 | -5/Factory | System corruption reached 10% 14045 | -5/Factory | Lost 4 parts (2u2w) 14335 | -5/Factory | Build established: Scavenger-Mutant 14918 | -5/Factory | Discovered new exit (range 9) 14932 | -5/Factory | Identified exit to Factory 15071 | -5/Factory | Build established: Scavenger-Tank 15471 | -5/Factory | Lost 3 parts (3u) 15557 | -5/Factory | Core integrity fell below 50% 15571 | -5/Factory | Core integrity fell below 20% 15576 | -5/Factory | Destroyed by G-50 Soldier with Heavy Laser Last Messages --------------- 15571_ U-05 Engineer lays Concrete. 15573_ The unstable cave ceiling collapses. 15573_ U-05 Engineer lays Concrete. 15573_ K-01 Serf collects debris. 15574_ U-05 Engineer lays Concrete. 15574_ Med. Storage Unit destroyed. 15575_ Power failure, Fission Core shutdown. 15575_ Overheating: Med. Matter Pod damaged (-13). 15575_ Overheating: Broken Imp. Weapon Cycler damaged (-16). 15575_ Overheating: Imp. Signal Interpreter damaged (-9). 15575_ U-05 Engineer builds a Wall. 15575_ Dropped Med. Matter Pod. 15576_ Dropped Fission Core. 15576_ K-01 Serf collects debris. 15576_ Broken Imp. Weapon Cycler destroyed. 15576_ Critical hit (Burn: +37). 15576_ Adv. Targeting Computer destroyed. Map ----- +----------------------------------------------------+ | #?????????????????????????????????????????? | | ###"####?????????????????????????????????????????? | | ########?????????????????????????????????????? | | # #?????????????????????????????????????? | | """ # "" #?????????????????????????????????????? | | """ # """ #?????????????????????????????????????? | | """ # R" #?????????????????????????????????????? | | """ # """ #?????????????????????????????????????? | | # ????##############?????????????????????? | | ###+###?### #?????????????????????? | | ##+## ## ?# ! #?????????????????????? | | # ??# #?????????????????????? | | ! #??# = #?????????????????????? | | #??# """ ! #?????????????????????? | | ##### [ #???# """ #?????????????????????? | | # % #???# """ """ #?????????????????????? | | ## ##??# """ #?????????????????????? | | #??# """ R" #?????????????????????? | | [# #??# """ """ #######???? ??????????? | | == ! #??# """ "" # # #?? ??????????? | | |% %%! #???# # ??????????? | | */!! =%*# #?###+#####+## # k #?????????? | | *!=%* #!*=#?# * ?????????? | | ## ##%##### ! /gg ] % ????????? | | ?######[== =*[%g %=% ????????? | | ???####+##### **@/[g % = ????????? | | ???# # u [== ????????? | | ???# """" # ###### [ #?????????? | | ???#/= """" # #?? [g%=g #?????????? | | ???#/= """" # #? =%*# #?????????? | | ???# """" # ^# * + ??????????? | | ???# """" # # "" %# ??????????? | | ???# "" # # """ #? ??????????? | | ???# # # """"" #? ???????????? | | ???# # ###?####?? ???????????? | | #######+##### #######???? ????????????? | | ? w ????????????? | | ? ??????????????? | | ?? ????????????????? | | ?????????????????????? | | ??????????????????????? | | ###+###################??????????????????????? | | #?# ##????????????????????????????????? | | #?# """ ##????????????????????????????????? | | ### """ ##????????????????????????????????? | | + """ #?????????????????????????????????? | | ### #?????????????????????????????????? | | #?# """ #?????????????????????????????????? | | +##+### """ #?????????????????????????????????? | | # """ #?????????????????????????????????? | +----------------------------------------------------+ Best States ------------- Heat Dissipation 141 Energy Generation 45 Energy Capacity 580 Matter Stores 300 Matter Capacity 300 Sight Range 16 Terrain Scan Density 10 Power Amplification 20 Armor Coverage 1200 Resistance: KI 25 Resistance: TH 10 Propulsion Shielding 33 Weapon Cycling 20 Melee Speed Boost 20 Evasion (%) 40 Targeting Accuracy 8 Melee Accuracy 6 Core Analysis 6 Recoil Reduction 2 Item Schematics ----------------- None Robot Schematics ------------------ R-06 Scavenger | -8/Storage | Hacked Fabricated ------------ Coolant Network | x1 | -6/Factory | Preloaded Repaired ---------- Bore Cannon | 50% | -8/Storage Hvy. Mass Driver | 15% | -5/Factory Alien Tech Used ----------------- None Achievements -------------- None Challenges ------------ None Game ------ Seed InsulationWaveMesh Manual? 0 Play Time 02:38:49 Cumulative 271.3 hours Start 2025.05.11 @ 23:39:57 End 2025.05.12 @ 06:13:22 Sessions 7 Manual Loads 0 Difficulty Rogue Special Mode None Game No. 214 Rogue 205 Adventurer 9 Explorer 0 Win Type - Total 3 Types 2/0/0/1/0/0/0/0/0/0 Lore% 84 Gallery% 71 Achievement% 64 Wizard Run 0 Options --------- Layout 1 ASCII 0 Keyboard 0 Movement Numpad Keybinds 0 Fullscreen 1 Font 24/Smallcaps Map View 50x35 Zoom Use 0% Tactical HUD 1 Map Filters NONE Filters NONE Steam 1 RUN: 03128f55-db20-4fbe-95b9-d6065766b946